bitfinex-derivatives/quotes_BTCF0:USTF0_20250211
["timestamp","ask_amount","ask_price","bid_price","bid_amount"]
[1739308567294,0.01486805,95532.0,95531.0,0.2093877]
[1739308567486,0.08294669,95540.0,95539.0,0.2093702]
[1739308567689,1.13524,95543.0,95533.0,0.3608]
[1739308567690,1.13588,95543.0,95533.0,0.3608]
[1739308567889,1.21818669,95543.0,95541.0,0.2093641]
[1739308568190,1.14934855,95543.0,95541.0,0.2093641]
[1739308569885,0.06067542,95542.0,95541.0,0.2103641]
[1739308571394,0.06067542,95542.0,95541.0,0.001]
[1739308571688,0.2093762,95537.0,95535.0,0.0324]
[1739308571894,0.13571542,95542.0,95541.0,0.001]
[1739308574988,0.06167542,95542.0,95541.0,0.001]
[1739308575296,0.13571542,95542.0,95541.0,0.001]
[1739308575690,0.34507902,95542.0,95541.0,0.001]
[1739308584103,0.42200605,95542.0,95541.0,0.001]
[1739308585602,0.13860245,95542.0,95541.0,0.001]
[1739308585903,0.13860245,95542.0,95541.0,0.2103658]
[1739308586201,0.21260245,95542.0,95541.0,0.2103658]
[1739308586598,0.13860245,95542.0,95541.0,0.2103658]
[1739308586799,0.13860245,95542.0,95541.0,0.5711658]
[1739308587004,0.2198155,95552.0,95543.0,0.2093614]
[1739308587808,0.2198155,95552.0,95551.0,0.2093439]
[1739308587809,0.23390783,95552.0,95551.0,0.2093439]
[1739308587999,0.2198155,95552.0,95551.0,0.2093439]
[1739308589002,0.2228155,95552.0,95551.0,0.2103439]
[1739308590008,0.2228155,95552.0,95551.0,0.2113439]
[1739308590714,0.003,95552.0,95551.0,0.2113439]
[1739308591115,0.003,95552.0,95551.0,0.5113439]
[1739308591324,0.18822741,95554.0,95553.0,0.2093395]
[1739308591818,0.18822741,95554.0,95553.0,0.5093395]
[1739308592022,0.18822741,95554.0,95553.0,0.5418395]
[1739308592721,0.19022741,95554.0,95553.0,0.5418395]
[1739308594214,0.002,95554.0,95553.0,0.5418395]
[1739308597112,0.00015703,95561.0,95560.0,0.2093242]
[1739308597419,0.00015703,95561.0,95560.0,0.6440842]
[1739308597621,0.00015703,95561.0,95560.0,0.9440842]
[1739308598818,0.00015703,95561.0,95560.0,0.6440842]
[1739308599123,0.00015703,95561.0,95560.0,1.0048842]
[1739308601026,0.00015703,95561.0,95560.0,0.9319242]
[1739308601415,0.00015703,95561.0,95560.0,0.9339242]
[1739308601728,0.00015703,95561.0,95560.0,0.9389242]
[1739308601923,0.00015703,95561.0,95560.0,0.006]
[1739308602127,0.20947903,95561.0,95560.0,0.2153242]
[1739308602622,0.20947903,95561.0,95560.0,0.006]
[1739308602921,0.22302283,95561.0,95560.0,0.006]
[1739308603116,0.01370083,95561.0,95551.0,0.00015703]
[1739308603317,0.2093463,95550.0,95538.0,0.2093724]
[1739308603528,0.2093702,95539.0,95526.0,0.21907534]
[1739308604226,0.2093702,95539.0,95535.0,0.2093787]
[1739308605526,0.2093702,95539.0,95535.0,0.2103787]
[1739308605936,0.2093702,95539.0,95535.0,0.2093787]
[1739308606321,0.15827363,95541.0,95535.0,0.2093787]
[1739308606522,0.15827363,95541.0,95536.0,0.2093747]
[1739308606728,0.0319,95541.0,95536.0,0.2093747]
[1739308607432,0.009,95539.0,95536.0,0.2093747]
[1739308608132,0.0409,95541.0,95536.0,0.2103747]
[1739308610632,0.003,95539.0,95536.0,0.2103747]
[1739308611228,0.003,95539.0,95537.0,0.2093739]
[1739308611428,0.0349,95541.0,95537.0,0.2093739]
[1739308612232,0.2093731,95538.0,95531.0,0.2093867]
[1739308612431,0.2093789,95536.0,95526.0,0.2093986]
[1739308612734,0.2093789,95536.0,95528.0,0.21096394]
[1739308612939,0.12637363,95538.0,95530.0,0.2093892]
[1739308613126,0.28261921,95538.0,95530.0,0.2093892]
[1739308613730,0.28261921,95538.0,95531.0,0.2093864]
[1739308613930,0.28261921,95538.0,95537.0,0.001]
[1739308614129,0.15624558,95538.0,95537.0,0.001]
[1739308614529,0.15624558,95538.0,95531.0,0.2093864]
[1739308614740,0.16024558,95538.0,95531.0,0.2093864]
[1739308615438,0.173043,95538.0,95537.0,0.001]
[1739308616434,0.3824154,95538.0,95537.0,0.001]
[1739308617434,0.3794154,95538.0,95528.0,0.00156974]
[1739308617634,0.3824154,95538.0,95528.0,0.00156974]
[1739308617829,0.22616982,95538.0,95528.0,0.00156974]
[1739308618343,0.22616982,95538.0,95537.0,0.001]
[1739308619244,0.22616982,95538.0,95533.0,0.2093833]
[1739308620239,0.2093774,95536.0,95528.0,0.00156974]
[1739308620448,0.14317105,95538.0,95528.0,0.00156974]
[1739308620638,0.2093795,95535.0,95528.0,0.00156974]
[1739308620839,0.2093795,95535.0,95529.0,0.2093917]
[1739308621139,0.50097105,95538.0,95528.0,0.00156974]
[1739308621447,0.50397105,95538.0,95537.0,0.001]
[1739308621638,0.37759742,95538.0,95537.0,0.001]
[1739308621840,0.58696982,95538.0,95537.0,0.001]
[1739308622040,0.004,95535.0,95531.0,0.2093873]
[1739308622743,0.58756983,95538.0,95537.0,0.001]
[1739308622943,0.58696982,95538.0,95537.0,0.001]
[1739308624344,0.58396982,95538.0,95529.0,0.209392]
[1739308624649,0.003,95535.0,95529.0,0.209392]
[1739308625749,0.58452983,95538.0,95529.0,0.209392]
[1739308625949,0.58696982,95538.0,95537.0,0.001]
[1739308626854,0.37759742,95538.0,95528.0,0.00156974]
[1739308627044,0.5701921,95529.0,95528.0,0.00156974]
[1739308627248,0.6441121,95529.0,95528.0,0.00156974]
[1739308627849,0.43472,95529.0,95528.0,0.00156974]
[1739308628548,0.43772,95529.0,95528.0,0.00156974]
[1739308631049,0.6471121,95529.0,95528.0,0.00156974]
[1739308632857,0.70779719,95529.0,95528.0,0.00156974]
[1739308634948,0.70779719,95529.0,95527.0,0.368]
[1739308636740,0.42448509,95529.0,95527.0,0.368]
[1739308636948,0.07388,95528.0,95527.0,0.368]
[1739308638052,0.003,95528.0,95527.0,0.368]
[1739308638358,0.07688,95528.0,95527.0,0.368]
[1739308640750,0.003,95528.0,95527.0,0.368]
[1739308659165,0.06368124,95528.0,95527.0,0.368]
[1739308669987,0.003,95528.0,95527.0,0.368]
[1739308671584,0.002,95528.0,95527.0,0.9381754]
[1739308671783,0.2198155,95534.0,95533.0,0.2093623]
[1739308671983,0.1699155,95534.0,95533.0,0.5701623]
[1739308672184,0.01308445,95545.0,95533.0,2.1608]
[1739308672491,0.14032576,95542.0,95541.0,0.5701447]
[1739308672680,0.14032576,95542.0,95541.0,0.8701447]
[1739308673089,0.14032576,95542.0,95541.0,0.88297232]
[1739308673287,0.14032576,95542.0,95541.0,0.5701447]
[1739308673691,0.14032576,95542.0,95541.0,0.58302341]
[1739308673990,0.00015703,95551.0,95550.0,0.209325]
[1739308674188,0.00015703,95551.0,95550.0,0.570125]
[1739308675791,0.00115703,95551.0,95550.0,0.570125]
[1739308682792,0.0141324,95551.0,95550.0,0.570125]
[1739308685890,0.00115703,95551.0,95550.0,0.570125]
[1739308691798,0.00115703,95551.0,95550.0,0.209325]
[1739308694304,0.00115703,95551.0,95550.0,0.235485]
[1739308696698,0.00115703,95551.0,95550.0,0.24815552]
[1739308698404,3e-08,95551.0,95550.0,0.56154136]
[1739308698904,3e-08,95551.0,95550.0,2.06163688]
[1739308699306,3e-08,95551.0,95550.0,2.27853688]
[1739308699498,5e-08,95560.0,95559.0,0.2093053]
[1739308699698,5e-08,95560.0,95559.0,0.65811786]
[1739308699899,5e-08,95560.0,95559.0,0.95811786]
[1739308700199,5e-08,95560.0,95559.0,0.97989814]
[1739308700405,5e-08,95560.0,95559.0,0.95811786]
[1739308700909,5e-08,95560.0,95559.0,2.45824175]
[1739308701299,5e-08,95560.0,95559.0,2.47995089]
[1739308701700,0.3,95580.0,95559.0,2.48595089]
[1739308701902,0.3,95580.0,95579.0,0.9308615]
[1739308701903,1e-07,95580.0,95579.0,0.9308615]
[1739308702104,0.0625,95602.0,95598.0,0.2092199]
[1739308702402,0.0625,95602.0,95598.0,0.5700199]
[1739308704606,0.00148,95599.0,95598.0,0.5710199]
[1739308706299,0.001,95599.0,95598.0,0.5710199]
[1739308707610,0.0625,95602.0,95598.0,0.5710199]
[1739308707812,0.0326,95609.0,95608.0,0.2091981]
[1739308708011,0.0326,95609.0,95608.0,0.6436781]
[1739308708608,0.12629687,95630.0,95629.0,0.2091521]
[1739308708807,0.2091415,95634.0,95631.0,0.2091476]
[1739308709003,0.2091415,95634.0,95629.0,0.3608]
[1739308709208,0.2091415,95634.0,95632.0,0.2091446]
[1739308709604,0.22166667,95634.0,95632.0,0.2091446]
[1739308710103,0.031,95633.0,95632.0,0.2091446]
[1739308712214,0.031,95633.0,95632.0,0.2111446]
[1739308718915,0.031,95633.0,95632.0,0.002]
[1739308719317,0.031,95633.0,95632.0,0.3628]
[1739308719714,0.031,95633.0,95632.0,0.002]
[1739308719927,0.031,95633.0,95623.0,0.00015685]
[1739308720223,0.3608,95626.0,95612.0,0.3608]
[1739308720411,0.3608,95626.0,95602.0,0.3608]
[1739308720412,0.2091838,95615.0,95602.0,0.3608]
[1739308720616,0.12629687,95612.0,95605.0,0.2092031]
[1739308721614,0.12629687,95612.0,95602.0,0.3608]
[1739308721818,0.33548757,95612.0,95602.0,0.3608]
[1739308722032,0.12629687,95615.0,95602.0,0.3608]
[1739308722331,0.36095626,95618.0,95603.0,0.2092077]
[1739308722520,0.36095626,95618.0,95613.0,0.2091858]
[1739308722825,0.00015626,95618.0,95616.0,0.2091802]
[1739308723026,0.00015626,95618.0,95617.0,0.3608]
[1739308723323,0.00015626,95618.0,95616.0,0.2091802]
[1739308724522,0.01254142,95618.0,95616.0,0.2101802]
[1739308724726,0.00215626,95618.0,95616.0,0.2101802]
[1739308725035,0.03515626,95618.0,95616.0,0.2101802]
[1739308726518,0.00415626,95618.0,95616.0,0.2101802]
[1739308726722,0.00215626,95618.0,95616.0,0.2091802]
[1739308726924,0.00315626,95618.0,95616.0,0.2101802]
[1739308727631,0.00315626,95618.0,95617.0,0.0326]
[1739308728133,0.00215626,95618.0,95617.0,0.0326]
[1739308728317,6e-08,95618.0,95617.0,0.3326]
[1739308728624,0.00156956,95643.0,95617.0,0.34617433]
[1739308728822,0.00156956,95643.0,95642.0,0.2091237]
[1739308729018,0.00156956,95643.0,95642.0,0.5699237]
[1739308729215,0.0639,95651.0,95646.0,0.209115]
[1739308730727,0.0639,95651.0,95646.0,0.210115]
[1739308731330,0.01301664,95647.0,95646.0,0.210115]
[1739308731529,0.00054,95647.0,95646.0,0.210115]
[1739308731730,0.00054,95647.0,95646.0,0.211115]
[1739308733519,0.07662949,95651.0,95646.0,0.002]
[1739308733723,0.07662949,95651.0,95650.0,0.5699062]
[1739308734421,0.0639,95651.0,95650.0,0.5699062]
[1739308735328,0.0639,95651.0,95650.0,0.5709062]
[1739308736832,0.0639,95651.0,95650.0,0.3628]
[1739308738935,0.0639,95651.0,95650.0,0.3618]
[1739308740939,0.0639,95651.0,95650.0,0.3608]
[1739308741829,0.0639,95651.0,95650.0,0.3618]
[1739308743730,0.06396,95651.0,95650.0,0.3618]
[1739308744134,0.06396,95651.0,95650.0,0.3608]
[1739308744435,0.06396,95651.0,95650.0,0.5699062]
[1739308745025,6e-05,95651.0,95650.0,0.5709062]
[1739308746425,6e-05,95651.0,95650.0,0.5699062]
[1739308752342,6e-05,95651.0,95650.0,0.5960362]
[1739308754250,6e-05,95651.0,95650.0,0.6279362]
[1739308754447,0.3608,95681.0,95663.0,0.2090778]
[1739308754745,0.12629687,95680.0,95673.0,0.2090539]
[1739308755247,0.33533917,95680.0,95674.0,0.2090534]
[1739308756442,0.12629687,95680.0,95674.0,0.2090534]
[1739308757246,0.12629687,95680.0,95674.0,0.2100534]
[1739308757450,0.01219345,95681.0,95674.0,0.001]
[1739308757647,0.07352,95688.0,95680.0,0.2090406]
[1739308758246,0.08555904,95688.0,95675.0,0.3608]
[1739308758449,0.12629687,95685.0,95675.0,0.3608]
[1739308759049,0.12629687,95685.0,95675.0,0.5698513]
[1739308759641,0.01203904,95688.0,95679.0,0.209042]
[1739308759847,0.22079687,95690.0,95683.0,0.209033]
[1739308760050,0.22079687,95690.0,95675.0,0.3608]
[1739308760351,0.12629687,95685.0,95680.0,0.001]
[1739308760650,0.23293126,95690.0,95680.0,0.2100392]
[1739308760951,0.23293126,95690.0,95680.0,0.2090392]
[1739308761254,0.23293126,95690.0,95683.0,0.001]
[1739308762250,0.00059,95695.0,95687.0,0.3608]
[1739308762455,0.1,95700.0,95692.0,0.3608]
[1739308762654,0.12629687,95720.0,95692.0,0.3608]
[1739308762655,0.01231431,95720.0,95719.0,0.2089555]
[1739308762843,0.12629687,95730.0,95716.0,0.3608]
[1739308763045,0.61339374,95730.0,95716.0,0.3608]
[1739308763249,0.625409,95730.0,95713.0,0.00015677]
[1739308763450,0.3608,95719.0,95713.0,0.00015677]
[1739308763854,0.12629687,95723.0,95713.0,0.00015677]
[1739308764256,0.2089495,95722.0,95716.0,0.001]
[1739308764554,0.07352,95721.0,95716.0,0.001]
[1739308764750,0.07352,95721.0,95713.0,0.00115677]
[1739308764949,0.3608,95722.0,95713.0,0.00115677]
[1739308765149,0.2089599,95717.0,95713.0,0.00115677]
[1739308765347,0.2089643,95715.0,95713.0,0.00115677]
[1739308765648,0.0632,95714.0,95713.0,0.00115677]
[1739308766957,0.07546456,95714.0,95713.0,0.00215677]
[1739308767357,0.07546456,95714.0,95713.0,0.00115677]
[1739308767549,0.07546456,95714.0,95713.0,0.00215677]
[1739308770050,0.14938456,95714.0,95713.0,0.00215677]
[1739308771561,0.14938456,95714.0,95713.0,0.00115677]
[1739308772256,0.35835096,95714.0,95713.0,0.00115677]
[1739308772462,0.35835096,95714.0,95713.0,0.00015677]
[1739308773151,0.35835096,95714.0,95713.0,0.00115677]
[1739308774857,0.35835096,95714.0,95713.0,0.00215677]
[1739308775758,0.35835096,95714.0,95713.0,0.00115677]
[1739308775962,0.35835096,95714.0,95713.0,0.00215677]
[1739308777962,0.35835096,95714.0,95713.0,0.00115677]
[1739308778265,0.35835096,95714.0,95713.0,0.00215677]
[1739308778559,0.35835096,95714.0,95713.0,0.00115677]
[1739308778767,0.35835096,95714.0,95713.0,0.00215677]
[1739308779463,0.14938456,95714.0,95713.0,0.00115677]
[1739308779664,1.13444001,95721.0,95720.0,0.2089534]
[1739308779860,0.77308,95721.0,95720.0,0.2089534]
[1739308782162,0.77308,95721.0,95720.0,0.2109534]
[1739308789865,0.9820312,95721.0,95720.0,0.002]
[1739308792571,1.0559112,95721.0,95720.0,0.002]
[1739308792973,0.84696,95721.0,95713.0,0.00015677]
[1739308793782,0.2089665,95714.0,95713.0,0.00015677]
[1739308794374,0.2089665,95714.0,95713.0,0.00115677]
[1739308799984,0.22129221,95714.0,95713.0,0.00115677]
[1739308800581,0.29513221,95714.0,95713.0,0.00115677]
[1739308801081,0.29513221,95714.0,95700.0,0.063]
[1739308801082,0.2089717,95712.0,95707.0,0.26195677]
[1739308801383,0.0323,95711.0,95707.0,0.26195677]
[1739308802082,0.2089796,95708.0,95707.0,0.26195677]
[1739308803580,0.0626,95711.0,95699.0,0.36095677]
[1739308803777,0.7216,95700.0,95683.0,0.02612]
[1739308803979,0.209032,95684.0,95683.0,0.02612]
[1739308804184,0.3608,95687.0,95683.0,0.02612]
[1739308804885,0.3608,95687.0,95683.0,0.01]
[1739308806393,0.3608,95687.0,95683.0,0.2190341]
[1739308806576,0.3608,95687.0,95683.0,0.2090341]
[1739308806780,0.3608,95687.0,95683.0,0.2100341]
[1739308809991,0.3608,95687.0,95684.0,0.2090316]
[1739308810983,0.3608,95687.0,95683.0,0.001]
[1739308811184,0.00015677,95695.0,95694.0,0.2090102]
[1739308814285,0.00215677,95695.0,95694.0,0.2090102]
[1739308816293,0.00015677,95695.0,95694.0,0.2090102]
[1739308816490,0.00115677,95695.0,95694.0,0.2090102]
[1739308817290,0.00215677,95695.0,95694.0,0.2090102]
[1739308826699,0.00015677,95695.0,95694.0,0.2090102]
[1739308826999,0.00215677,95695.0,95694.0,0.2090102]
[1739308829994,0.00015677,95695.0,95694.0,0.2090102]
[1739308830804,0.00115677,95695.0,95694.0,0.2090102]
[1739308833493,0.00015677,95695.0,95694.0,0.2090102]
[1739308833698,0.00215677,95695.0,95694.0,0.2090102]
[1739308835409,0.00015677,95695.0,95687.0,0.209025]
[1739308835611,0.21016677,95695.0,95687.0,0.209025]
[1739308835998,0.00115677,95695.0,95675.0,0.07583677]
[1739308836203,0.00215677,95695.0,95688.0,0.2090231]
[1739308836799,0.01200921,95695.0,95688.0,0.2090231]
[1739308837000,0.01000921,95695.0,95689.0,0.2090209]
[1739308838609,0.01000921,95695.0,95690.0,0.2090175]
[1739308838610,0.01100921,95695.0,95690.0,0.2090175]
[1739308838806,0.01100921,95695.0,95694.0,0.2090103]
[1739308839016,0.00115677,95695.0,95694.0,0.2090103]
[1739308839310,0.00215677,95695.0,95678.0,0.00963164]
[1739308839498,0.12629687,95692.0,95689.0,0.2090208]
[1739308839703,0.0636,95691.0,95678.0,0.00963164]
[1739308839903,0.0636,95691.0,95686.0,0.2090274]
[1739308842411,0.0646,95691.0,95686.0,0.2090274]
[1739308843710,0.0646,95691.0,95687.0,0.209025]
[1739308844804,0.0636,95691.0,95687.0,0.209025]
[1739308845003,0.0656,95691.0,95687.0,0.209025]
[1739308848417,0.0656,95691.0,95689.0,0.2090205]
[1739308849520,0.0636,95691.0,95689.0,0.2090205]
[1739308849720,1e-07,95691.0,95688.0,0.07484]
[1739308850014,0.3608,95716.0,95688.0,0.07484]
[1739308850015,0.3608,95716.0,95715.0,0.2089644]
[1739308850216,0.2089453,95724.0,95714.0,0.208966]
[1739308850423,0.0647,95715.0,95712.0,0.2089705]
[1739308850920,0.0647,95715.0,95713.0,0.2089685]
[1739308851523,0.0647,95715.0,95714.0,0.001]
[1739308852525,0.48709687,95722.0,95721.0,0.2089513]
[1739308852713,0.3608,95722.0,95721.0,0.2089513]
[1739308853619,0.00015648,95723.0,95721.0,0.2089513]
[1739308854221,0.00015648,95723.0,95721.0,0.2099513]
[1739308854527,0.00015648,95723.0,95721.0,0.2109513]
[1739308854825,1e-08,95723.0,95721.0,0.2109513]
[1739308855424,1e-08,95723.0,95722.0,0.07528]
[1739308856017,1e-08,95723.0,95722.0,0.08887705]
[1739308856417,1e-08,95723.0,95722.0,0.07528]
[1739308856817,1e-08,95723.0,95722.0,0.09861076]
[1739308857023,1e-08,95723.0,95722.0,0.45941076]
[1739308858324,1e-08,95723.0,95722.0,0.75941076]
[1739308858713,1e-08,95723.0,95722.0,2.25941076]
[1739308860018,0.0937,95759.0,95725.0,0.3134114]
[1739308860229,0.0937,95759.0,95747.0,0.3608]
[1739308860427,0.0634,95759.0,95747.0,0.3608]
[1739308860630,0.0634,95759.0,95758.0,0.2088706]
[1739308860834,0.0634,95759.0,95758.0,0.5696706]
[1739308861521,0.0634,95759.0,95758.0,0.2088706]
[1739308862230,0.00993232,95769.0,95767.0,0.2088498]
[1739308862432,0.062,95771.0,95767.0,0.2088498]
[1739308862927,0.07172715,95771.0,95759.0,0.2088665]
[1739308863125,0.07172715,95771.0,95758.0,0.001]
[1739308863126,0.2088681,95760.0,95758.0,0.001]
[1739308863327,0.2088681,95760.0,95758.0,0.002]
[1739308863517,0.3608,95764.0,95749.0,0.23514547]
[1739308863518,0.07504,95759.0,95749.0,0.02625667]
[1739308863723,0.3608,95750.0,95749.0,0.00015667]
[1739308865023,0.3608,95750.0,95749.0,0.00115667]
[1739308865225,0.43588,95750.0,95728.0,0.02611]
[1739308865532,0.5697324,95730.0,95728.0,0.02611]
[1739308865831,0.10568,95729.0,95707.0,0.00950595]
[1739308866020,0.3608,95722.0,95715.0,0.2089634]
[1739308866333,0.10568,95729.0,95706.0,0.063]
[1739308866334,0.00015637,95728.0,95718.0,0.2089569]
[1739308866930,0.00015637,95728.0,95719.0,0.2089549]
[1739308867430,0.00015637,95728.0,95709.0,0.00015667]
[1739308867431,0.3608,95720.0,95709.0,0.00015667]
[1739308867745,0.2089855,95706.0,95681.0,0.21865463]
[1739308867926,0.12629687,95691.0,95683.0,0.2090325]
[1739308868340,0.12629687,95691.0,95681.0,0.00961773]
[1739308868526,0.2090222,95689.0,95681.0,0.00961773]
[1739308868728,0.2090222,95689.0,95677.0,0.3608]
[1739308869025,0.3608,95690.0,95677.0,0.3608]
[1739308869535,0.3608,95690.0,95676.0,0.00015676]
[1739308869937,0.2090257,95687.0,95681.0,0.004]
[1739308870333,0.3608,95690.0,95681.0,0.004]
[1739308870528,0.2090459,95678.0,95677.0,0.005]
[1739308870728,0.1990459,95678.0,95677.0,0.005]
[1739308871634,0.1890459,95678.0,95677.0,0.005]
[1739308872135,0.00015676,95696.0,95688.0,0.209023]
[1739308872332,0.00015676,95696.0,95691.0,0.5698152]
[1739308872635,0.00015676,95696.0,95692.0,1.5]
[1739308872832,0.00015676,95696.0,95694.0,0.2090083]
[1739308873932,0.00115676,95696.0,95694.0,0.2090083]
[1739308874130,0.00115676,95696.0,95692.0,0.0012]
[1739308874436,0.2090197,95690.0,95688.0,0.015]
[1739308874628,0.3598,95689.0,95676.0,0.00015676]
[1739308874825,0.2090248,95688.0,95677.0,0.2090464]
[1739308875028,0.2847448,95688.0,95678.0,0.2090445]
[1739308875230,0.41104167,95688.0,95678.0,0.2090445]
[1739308875839,0.41104167,95688.0,95676.0,0.00015676]
[1739308876028,0.40904167,95688.0,95679.0,0.2090425]
[1739308876229,0.40904167,95688.0,95676.0,0.00015676]
[1739308876429,0.40904167,95688.0,95681.0,0.2090381]
[1739308877030,0.40904167,95688.0,95676.0,0.36095676]
[1739308877230,0.41004167,95688.0,95682.0,0.2090365]
[1739308877441,0.00015676,95696.0,95685.0,0.3608]
[1739308877740,0.00015676,95696.0,95695.0,0.2090081]
[1739308879843,0.00115676,95696.0,95695.0,0.2090081]
[1739308880337,0.43648,95711.0,95709.0,0.2089776]
[1739308880338,0.3608,95711.0,95709.0,0.2089776]
[1739308880749,0.12629687,95720.0,95718.0,0.2089579]
[1739308881041,0.3608,95725.0,95723.0,0.208945]
[1739308881241,0.07568,95724.0,95723.0,0.208945]
[1739308881443,0.3608,95725.0,95723.0,0.208945]
[1739308881637,0.43644,95725.0,95723.0,0.208945]
[1739308882040,0.43644,95725.0,95718.0,0.001]
[1739308882234,0.43644,95725.0,95724.0,0.2089448]
[1739308883149,0.43844,95725.0,95724.0,0.2089448]
[1739308883443,0.44544,95725.0,95724.0,0.2089448]
[1739308883644,0.3698,95725.0,95724.0,0.2089448]
[1739308884239,0.3768,95725.0,95724.0,0.2099448]
[1739308884937,0.3758,95725.0,95724.0,0.2099448]
[1739308885847,0.3768,95725.0,95724.0,0.2099448]
[1739308886547,0.3638,95725.0,95724.0,0.2089448]
[1739308886748,0.3758,95725.0,95724.0,0.2099448]
[1739308887343,0.3638,95725.0,95724.0,0.2089448]
[1739308887651,0.3758,95725.0,95724.0,0.2099448]
[1739308888353,0.3758,95725.0,95724.0,0.2089448]
[1739308888354,0.3638,95725.0,95724.0,0.2089448]
[1739308888651,0.3768,95725.0,95724.0,0.2099448]
[1739308889947,0.3638,95725.0,95724.0,0.2089448]
[1739308890255,0.5847427,95725.0,95724.0,0.001]
[1739308890845,0.3778,95725.0,95712.0,0.2089709]
[1739308891053,0.33524857,95721.0,95712.0,0.2089709]
[1739308891351,0.33524857,95721.0,95714.0,0.2089666]
[1739308892041,0.12629687,95721.0,95709.0,0.36095676]
[1739308892544,0.3608,95716.0,95709.0,0.00015676]
[1739308893050,0.3608,95713.0,95709.0,0.00015676]
[1739308893245,0.2089864,95705.0,95696.0,0.2090042]
[1739308893447,0.5697958,95701.0,95694.0,0.0311]
[1739308893943,0.3608,95701.0,95694.0,0.0311]
[1739308894141,0.3608,95701.0,95682.0,0.00991011]
[1739308894142,0.2090019,95698.0,95690.0,0.2090186]
[1739308894451,0.2090082,95696.0,95690.0,0.2090175]
[1739308894640,0.3608,95691.0,95688.0,0.00015676]
[1739308894844,0.2090213,95689.0,95688.0,0.00015676]
[1739308895048,0.2090452,95679.0,95671.0,0.0329]
[1739308895244,0.2090481,95677.0,95671.0,0.2419598]
[1739308895444,0.2090481,95677.0,95671.0,0.2090598]
[1739308895838,0.2090509,95676.0,95667.0,0.25131745]
[1739308896041,0.2070509,95676.0,95667.0,0.25131745]
[1739308896558,0.2060509,95676.0,95667.0,0.00156751]
[1739308896846,0.2060509,95676.0,95665.0,0.23535976]
[1739308896847,0.3548,95671.0,95669.0,0.2090641]
[1739308897054,0.3418,95671.0,95669.0,0.2090641]
[1739308897350,0.2090525,95675.0,95669.0,0.2090641]
[1739308897853,0.001,95671.0,95669.0,0.2170641]
[1739308898959,0.12629687,95680.0,95678.0,0.2090447]
[1739308899247,0.00015676,95685.0,95680.0,0.2090402]
[1739308899452,0.00015676,95685.0,95673.0,0.3608]
[1739308900040,0.001,95675.0,95673.0,0.3608]
[1739308900559,0.001,95675.0,95674.0,0.2090537]
[1739308900849,0.00015676,95685.0,95673.0,0.37377919]
[1739308901352,0.00015676,95685.0,95684.0,0.2090323]
[1739308902949,0.00215676,95685.0,95684.0,0.2090323]
[1739308904052,0.01015676,95685.0,95684.0,0.2090323]
[1739308904454,0.2090491,95677.0,95669.0,0.209064]
[1739308904761,0.2090498,95676.0,95670.0,0.2090623]
[1739308905150,0.2090605,95672.0,95666.0,0.02613]
[1739308905356,0.3608,95670.0,95666.0,0.02613]
[1739308905753,0.3608,95670.0,95669.0,0.003]
[1739308906254,0.3608,95670.0,95666.0,0.2130713]
[1739308906658,0.3608,95670.0,95669.0,0.006]
[1739308907248,0.3608,95670.0,95668.0,0.2090667]
[1739308907458,0.3618,95670.0,95668.0,0.2090667]
[1739308908155,0.3618,95670.0,95669.0,0.006]
[1739308908347,0.3618,95670.0,95669.0,0.2180649]
[1739308908759,0.3618,95670.0,95669.0,0.2150649]
[1739308909149,0.001,95670.0,95669.0,0.2150649]
[1739308909652,0.2090624,95671.0,95669.0,0.2090649]
[1739308909852,0.001,95670.0,95669.0,0.2090649]
[1739308910060,0.001,95670.0,95669.0,0.2120649]
[1739308910458,0.2090624,95671.0,95669.0,0.2120649]
[1739308910659,0.001,95670.0,95669.0,0.2180649]
[1739308911960,0.001,95670.0,95669.0,0.2150649]
[1739308912165,0.001,95670.0,95669.0,0.2180649]
[1739308912557,0.43528,95678.0,95677.0,0.2090475]
[1739308912558,0.3608,95678.0,95677.0,0.2090475]
[1739308914560,0.3608,95678.0,95677.0,0.2100475]
[1739308915563,0.07416,95683.0,95679.0,0.2090426]
[1739308915965,0.07416,95683.0,95677.0,0.001]
[1739308916264,0.07416,95683.0,95682.0,0.2090365]
[1739308916572,0.07416,95683.0,95677.0,0.001]
[1739308916573,0.00015676,95685.0,95684.0,0.2090322]
[1739308918765,0.00515676,95685.0,95684.0,0.2100322]
[1739308918963,0.00615676,95685.0,95684.0,0.2100322]
[1739308924170,0.00615676,95685.0,95684.0,0.001]
[1739308924171,0.21518676,95685.0,95684.0,0.001]
[1739308924870,0.24558676,95685.0,95684.0,0.001]
[1739308930472,0.03655676,95685.0,95684.0,0.001]
[1739308931566,0.11235676,95685.0,95684.0,0.001]
[1739308932167,0.47315676,95685.0,95684.0,0.001]
[1739308932677,0.44267676,95685.0,95684.0,0.001]
[1739308935385,0.08187676,95685.0,95684.0,0.001]
[1739308942290,0.00615676,95685.0,95684.0,0.001]
[1739308944685,0.00615676,95685.0,95665.0,0.36095676]
[1739308944888,0.3608,95677.0,95665.0,0.36095676]
[1739308945088,0.0649,95676.0,95666.0,0.21889067]
[1739308945392,0.0649,95676.0,95665.0,0.36095676]
[1739308945794,0.0649,95676.0,95669.0,0.2090642]
[1739308945994,0.0649,95676.0,95673.0,0.002]
[1739308946990,0.0649,95676.0,95673.0,0.005]
[1739308947689,0.0649,95676.0,95673.0,0.003]
[1739308947886,0.07532,95677.0,95674.0,0.2090522]
[1739308948193,0.07532,95677.0,95676.0,0.2090496]
[1739308949790,0.00015676,95685.0,95674.0,0.0654]
[1739308949988,0.00015676,95685.0,95684.0,0.2090321]
[1739308951188,0.00115676,95685.0,95684.0,0.2090321]
[1739308951387,0.00615676,95685.0,95684.0,0.2100321]
[1739308951897,0.00056001,95702.0,95684.0,0.73688]
[1739308952094,0.3608,95727.0,95707.0,0.0522452]
[1739308952391,0.3608,95727.0,95726.0,0.2089404]
[1739308952694,0.12629687,95740.0,95738.0,0.2089128]
[1739308952899,0.3608,95746.0,95745.0,0.208899]
[1739308954385,0.3678,95746.0,95745.0,0.209899]
[1739308954794,0.3828,95746.0,95745.0,0.210899]
[1739308955995,0.022,95746.0,95745.0,0.210899]
[1739308956794,0.01968649,95746.0,95745.0,0.210899]
[1739308956993,0.01968649,95746.0,95745.0,0.209899]
[1739308957196,0.01968649,95746.0,95745.0,0.210899]